[Event "MČR juniorů a juniorek v rapid šachu 2024"]
[Site "Hotel Fit Fun, Harrachov, Czech Republic"]
[Date "2024.09.21"]
[Round "4.16"]
[White "Rybacek Martin"]
[Black "Bartak Josef"]
[Result "0-1"]
[TimeControl "20+5"]
[WhiteFideId "23739266"]
[BlackFideId "23712252"]
[WhiteElo "1831"]
[BlackElo "1902"]

1. Nf3 {[%clk 00:20:08]} {[%emt 00:00:01]} Nf6 {[%clk 00:20:08]} {[%emt
00:00:03]} 2. g3 {[%clk 00:20:12]} d5 {[%clk 00:20:11]} {[%emt 00:00:01]} 3.
Bg2 {[%clk 00:20:15]} {[%emt 00:00:02]} g6 {[%clk 00:20:14]} {[%emt 00:00:03]}
4. O-O {[%clk 00:20:09]} {[%emt 00:00:11]} Bg7 {[%clk 00:20:18]} 5. c4 {[%clk
00:20:04]} {[%emt 00:00:11]} c6 {[%clk 00:20:21]} {[%emt 00:00:01]} 6. cxd5
{[%clk 00:20:00]} {[%emt 00:00:10]} cxd5 {[%clk 00:20:22]} {[%emt 00:00:04]} 7.
d4 {[%clk 00:19:57]} {[%emt 00:00:07]} O-O {[%clk 00:20:23]} {[%emt 00:00:05]}
8. Ne5 {[%clk 00:20:01]} Nc6 {[%clk 00:20:20]} {[%emt 00:00:08]} 9. Nxc6 {[%clk
00:20:03]} {[%emt 00:00:03]} bxc6 {[%clk 00:20:23]} {[%emt 00:00:02]} 10. Nc3
{[%clk 00:20:06]} {[%emt 00:00:02]} Re8 {[%clk 00:19:53]} {[%emt 00:00:34]} 11.
Bf4 {[%clk 00:19:26]} {[%emt 00:00:45]} Nh5 {[%clk 00:19:32]} {[%emt 00:00:26]}
12. Be3 {[%clk 00:19:27]} {[%emt 00:00:04]} Rb8 {[%clk 00:18:53]} {[%emt
00:00:44]} 13. b3 {[%clk 00:18:45]} {[%emt 00:00:48]} Ba6 {[%clk 00:17:56]}
{[%emt 00:00:56]} 14. Bf3 {[%clk 00:17:56]} {[%emt 00:01:00]} c5 {[%clk
00:13:09]} {[%emt 00:04:52]} 15. Nxd5 {[%clk 00:11:54]} {[%emt 00:06:07]} e6
{[%clk 00:10:47]} {[%emt 00:02:26]} 16. Nf4 {[%clk 00:10:43]} {[%emt 00:01:16]}
Nxf4 {[%clk 00:09:22]} {[%emt 00:01:30]} 17. Bxf4 {[%clk 00:10:46]} {[%emt
00:00:03]} Rc8 {[%clk 00:09:26]} 18. Be5 {[%clk 00:09:22]} {[%emt 00:01:29]} f6
{[%clk 00:08:42]} {[%emt 00:00:50]} 19. Bf4 {[%clk 00:09:23]} {[%emt 00:00:04]}
cxd4 {[%clk 00:08:25]} {[%emt 00:00:22]} 20. Re1 {[%clk 00:08:57]} {[%emt
00:00:31]} e5 {[%clk 00:08:11]} {[%emt 00:00:18]} 21. Bc1 {[%clk 00:08:47]}
{[%emt 00:00:15]} e4 {[%clk 00:07:57]} {[%emt 00:00:20]} 22. Bg2 {[%clk
00:08:42]} {[%emt 00:00:10]} d3 {[%clk 00:06:35]} {[%emt 00:01:28]} 23. exd3
{[%clk 00:08:22]} {[%emt 00:00:25]} f5 {[%clk 00:06:31]} {[%emt 00:00:08]} 24.
d4 {[%clk 00:07:08]} {[%emt 00:01:19]} Bxd4 {[%clk 00:06:32]} {[%emt 00:00:05]}
25. Be3 {[%clk 00:06:37]} {[%emt 00:00:36]} Bxa1 {[%clk 00:05:20]} {[%emt
00:01:16]} 26. Qxa1 {[%clk 00:06:41]} {[%emt 00:00:01]} Rc7 {[%clk 00:04:57]}
{[%emt 00:00:28]} 27. f3 {[%clk 00:05:33]} {[%emt 00:01:13]} exf3 {[%clk
00:03:45]} {[%emt 00:01:17]} 28. Bxf3 {[%clk 00:05:36]} {[%emt 00:00:01]} Qd3
{[%clk 00:03:49]} {[%emt 00:00:01]} 29. Bf4 {[%clk 00:04:45]} {[%emt 00:00:56]}
Rxe1+ {[%clk 00:02:27]} {[%emt 00:01:27]} 30. Qxe1 {[%clk 00:04:49]} {[%emt
00:00:01]} Re7 {[%clk 00:02:09]} {[%emt 00:00:24]} 31. Qd1 {[%clk 00:03:22]}
{[%emt 00:01:32]} Qxd1+ 32. Bxd1 {[%clk 00:03:26]} Re1+ {[%clk 00:02:09]}
{[%emt 00:00:01]} 0-1



[ePGN "0.1;DGT LiveChess/2.2.6"]

[Event "MČR juniorů a juniorek v rapid šachu 2024"]
[Site "Hotel Fit Fun, Harrachov, Czech Republic"]
[Date "2024.09.21"]
[Round "4.17"]
[White "Pejrimovsky Tadeas Rubel"]
[Black "Nespurek Jakub"]
[Result "0-1"]
[TimeControl "20+5"]
[WhiteFideId "23709537"]
[BlackFideId "391816"]
[WhiteElo "1895"]
[BlackElo "1817"]

1. e4 {[%emt 00:00:03]} g6 {[%clk 00:20:07]} {[%emt 00:00:02]} 2. d4 {[%clk
00:20:10]} {[%emt 00:00:02]} d6 {[%clk 00:20:10]} {[%emt 00:00:03]} 3. g3
{[%clk 00:20:08]} {[%emt 00:00:07]} Bg7 {[%clk 00:20:13]} {[%emt 00:00:02]} 4.
Bg2 {[%clk 00:20:11]} Nd7 {[%clk 00:20:15]} {[%emt 00:00:03]} 5. Ne2 {[%clk
00:20:14]} {[%emt 00:00:03]} c5 {[%clk 00:20:18]} {[%emt 00:00:02]} 6. O-O
{[%clk 00:20:06]} {[%emt 00:00:13]} cxd4 7. Nxd4 {[%clk 00:20:08]} Ngf6 {[%clk
00:20:11]} {[%emt 00:00:05]} 8. Nc3 {[%clk 00:20:11]} {[%emt 00:00:01]} O-O
{[%clk 00:20:05]} {[%emt 00:00:10]} 9. h3 {[%clk 00:20:12]} {[%emt 00:00:04]}
Nc5 {[%clk 00:18:55]} {[%emt 00:01:15]} 10. Be3 {[%clk 00:19:16]} {[%emt
00:01:01]} Ne6 {[%clk 00:18:26]} {[%emt 00:00:34]} 11. Qd2 {[%clk 00:18:40]}
{[%emt 00:00:42]} Re8 {[%clk 00:17:47]} {[%emt 00:00:44]} 12. Rad1 {[%clk
00:18:14]} {[%emt 00:00:31]} Bd7 {[%clk 00:16:45]} {[%emt 00:01:07]} 13. Kh2
{[%clk 00:16:53]} {[%emt 00:01:26]} Nxd4 {[%clk 00:12:41]} {[%emt 00:04:09]} 14.
Bxd4 {[%clk 00:16:56]} {[%emt 00:00:02]} Bc6 {[%clk 00:11:33]} {[%emt
00:01:13]} 15. Be3 {[%clk 00:16:09]} {[%emt 00:00:52]} Qa5 {[%clk 00:09:45]}
{[%emt 00:01:52]} 16. Bh6 {[%clk 00:15:56]} {[%emt 00:00:19]} Bh8 {[%clk
00:09:31]} {[%emt 00:00:19]} 17. a3 {[%clk 00:15:26]} {[%emt 00:00:35]} Qh5
{[%clk 00:08:04]} {[%emt 00:01:30]} 18. Bf3 {[%clk 00:14:23]} {[%emt 00:01:09]}
Qxf3 {[%clk 00:07:56]} {[%emt 00:00:13]} 19. Rde1 {[%clk 00:13:24]} {[%emt
00:01:05]} Qh5 {[%clk 00:07:42]} {[%emt 00:00:19]} 20. Kg2 {[%clk 00:13:03]}
{[%emt 00:00:26]} d5 {[%clk 00:06:59]} {[%emt 00:00:48]} 21. exd5 {[%clk
00:13:05]} {[%emt 00:00:03]} Nxd5 {[%clk 00:06:59]} {[%emt 00:00:05]} 22. Nxd5
{[%clk 00:13:04]} {[%emt 00:00:05]} Qxd5+ {[%clk 00:06:54]} {[%emt 00:00:10]}
23. Qxd5 {[%clk 00:13:07]} {[%emt 00:00:02]} Bxd5+ {[%clk 00:06:57]} {[%emt
00:00:02]} 24. Kh2 {[%clk 00:13:10]} {[%emt 00:00:02]} Bxb2 {[%clk 00:06:50]}
{[%emt 00:00:13]} 25. Rd1 {[%clk 00:13:14]} Bc6 {[%clk 00:06:44]} {[%emt
00:00:12]} 26. Rfe1 {[%clk 00:13:16]} {[%emt 00:00:02]} Bxa3 {[%clk 00:06:42]}
{[%emt 00:00:08]} 27. Re3 {[%clk 00:13:20]} {[%emt 00:00:01]} Bd6 {[%clk
00:06:38]} {[%emt 00:00:07]} 28. Red3 {[%clk 00:13:18]} {[%emt 00:00:09]} a5
{[%clk 00:06:34]} {[%emt 00:00:09]} 29. Be3 {[%clk 00:13:18]} {[%emt 00:00:05]}
Be4 {[%clk 00:06:21]} {[%emt 00:00:17]} 30. R3d2 {[%clk 00:13:20]} {[%emt
00:00:04]} a4 {[%clk 00:06:22]} {[%emt 00:00:04]} 31. Bd4 {[%clk 00:13:23]}
{[%emt 00:00:02]} a3 {[%clk 00:05:58]} {[%emt 00:00:29]} 32. c3 {[%clk
00:13:26]} Bf3 {[%clk 00:05:43]} {[%emt 00:00:20]} 33. Rb1 {[%clk 00:13:29]}
{[%emt 00:00:02]} Rad8 {[%clk 00:05:42]} {[%emt 00:00:07]} 34. Bb6 {[%clk
00:13:21]} {[%emt 00:00:13]} Bxg3+ {[%clk 00:05:42]} {[%emt 00:00:05]} 35. fxg3
{[%clk 00:13:25]} Rxd2+ {[%clk 00:05:45]} {[%emt 00:00:02]} 36. Kg1 {[%clk
00:13:28]} {[%emt 00:00:02]} a2 {[%clk 00:05:44]} {[%emt 00:00:06]} 37. Ra1
{[%clk 00:13:31]} {[%emt 00:00:02]} Rb2 {[%clk 00:05:47]} {[%emt 00:00:02]} 0-1



[ePGN "0.1;DGT LiveChess/2.2.6"]

[Event "MČR juniorů a juniorek v rapid šachu 2024"]
[Site "Hotel Fit Fun, Harrachov, Czech Republic"]
[Date "2024.09.21"]
[Round "4.18"]
[White "Sadil Antonin"]
[Black "Stocek Martin"]
[Result "1/2-1/2"]
[TimeControl "20+5"]
[WhiteFideId "23735597"]
[BlackFideId "380121"]
[WhiteElo "1784"]
[BlackElo "2021"]

1. e4 {[%clk 00:19:50]} {[%emt 00:00:20]} c6 {[%clk 00:20:09]} {[%emt
00:00:02]} 2. d4 {[%clk 00:19:53]} {[%emt 00:00:03]} d5 {[%clk 00:20:13]} 3.
exd5 {[%clk 00:19:56]} {[%emt 00:00:01]} cxd5 {[%clk 00:20:16]} {[%emt
00:00:02]} 4. Bd3 {[%clk 00:20:00]} {[%emt 00:00:01]} Nc6 {[%clk 00:20:19]}
{[%emt 00:00:03]} 5. c3 {[%clk 00:20:03]} Nf6 {[%clk 00:20:22]} {[%emt
00:00:02]} 6. h3 {[%clk 00:20:07]} {[%emt 00:00:01]} e5 {[%clk 00:20:25]}
{[%emt 00:00:03]} 7. dxe5 {[%clk 00:20:10]} {[%emt 00:00:01]} Nxe5 {[%clk
00:20:27]} {[%emt 00:00:02]} 8. Nf3 {[%clk 00:20:13]} {[%emt 00:00:04]} Nxd3+
{[%clk 00:20:05]} {[%emt 00:00:25]} 9. Qxd3 {[%clk 00:20:17]} {[%emt 00:00:02]}
Bd6 {[%clk 00:18:59]} {[%emt 00:01:10]} 10. O-O {[%clk 00:19:39]} {[%emt
00:00:42]} O-O {[%clk 00:19:00]} {[%emt 00:00:03]} 11. Be3 {[%clk 00:19:16]}
{[%emt 00:00:29]} Be6 {[%clk 00:18:48]} {[%emt 00:00:18]} 12. Nd4 {[%clk
00:17:59]} {[%emt 00:01:22]} Rc8 {[%clk 00:16:14]} {[%emt 00:02:39]} 13. Nb5
{[%clk 00:16:25]} {[%emt 00:01:39]} a6 {[%clk 00:11:50]} {[%emt 00:04:29]} 14.
Nxd6 {[%clk 00:16:27]} {[%emt 00:00:03]} Qxd6 {[%clk 00:11:54]} 15. Nd2 {[%clk
00:16:06]} {[%emt 00:00:26]} Rfd8 {[%clk 00:11:44]} {[%emt 00:00:15]} 16. Bd4
{[%clk 00:15:30]} {[%emt 00:00:41]} Qf4 {[%clk 00:11:27]} {[%emt 00:00:21]} 17.
Rfe1 {[%clk 00:13:29]} {[%emt 00:02:06]} Bf5 {[%clk 00:10:19]} {[%emt
00:01:14]} 18. Qe3 {[%clk 00:13:26]} {[%emt 00:00:06]} Qxe3 {[%clk 00:09:17]}
{[%emt 00:01:09]} 19. Rxe3 {[%clk 00:13:22]} {[%emt 00:00:09]} Be6 {[%clk
00:08:14]} {[%emt 00:01:07]} 20. Bxf6 {[%clk 00:12:58]} {[%emt 00:00:29]} gxf6
{[%clk 00:08:18]} {[%emt 00:00:02]} 21. Nf3 {[%clk 00:12:46]} {[%emt 00:00:16]}
Kf8 {[%clk 00:08:09]} {[%emt 00:00:15]} 22. Nd4 {[%clk 00:12:44]} {[%emt
00:00:08]} Bd7 {[%clk 00:07:17]} {[%emt 00:00:56]} 23. Rf3 {[%clk 00:12:32]}
{[%emt 00:00:17]} Kg7 {[%clk 00:06:30]} {[%emt 00:00:52]} 24. Re1 {[%clk
00:11:01]} {[%emt 00:01:35]} Re8 {[%clk 00:06:20]} {[%emt 00:00:15]} 25. Rfe3
{[%clk 00:10:43]} {[%emt 00:00:24]} Kf8 {[%clk 00:05:28]} {[%emt 00:00:58]} 26.
Kf1 {[%clk 00:08:52]} {[%emt 00:01:55]} Rxe3 {[%clk 00:03:22]} {[%emt
00:02:11]} 27. Rxe3 {[%clk 00:08:56]} Re8 {[%clk 00:03:25]} {[%emt 00:00:02]}
28. Rxe8+ Kxe8 {[%clk 00:03:30]} 29. Ke2 {[%clk 00:08:20]} {[%emt 00:00:05]}
Ke7 {[%clk 00:03:34]} 30. Ke3 {[%clk 00:08:14]} {[%emt 00:00:10]} Kd6 {[%clk
00:02:52]} {[%emt 00:00:48]} 31. b4 {[%clk 00:06:30]} {[%emt 00:01:49]} Ke5
{[%clk 00:02:06]} {[%emt 00:00:51]} 32. g4 {[%clk 00:04:46]} {[%emt 00:01:49]}
b6 {[%clk 00:01:44]} {[%emt 00:00:27]} 33. Nf3+ {[%clk 00:04:37]} {[%emt
00:00:13]} Kd6 {[%clk 00:01:41]} {[%emt 00:00:07]} 34. Kd4 {[%clk 00:04:27]}
{[%emt 00:00:15]} Bb5 {[%clk 00:00:39]} {[%emt 00:01:06]} 35. Nd2 {[%clk
00:02:19]} {[%emt 00:02:14]} Be2 {[%clk 00:00:38]} {[%emt 00:00:07]} 36. Ke3
{[%clk 00:01:56]} {[%emt 00:00:28]} Bd1 {[%clk 00:00:41]} {[%emt 00:00:01]} 37.
Kd4 {[%clk 00:01:49]} {[%emt 00:00:12]} Bc2 {[%clk 00:00:25]} {[%emt 00:00:21]}
38. Nf1 {[%clk 00:01:45]} {[%emt 00:00:08]} Be4 {[%clk 00:00:28]} {[%emt
00:00:02]} 39. Ne3 {[%clk 00:01:42]} {[%emt 00:00:08]} b5 {[%clk 00:00:09]}
{[%emt 00:00:25]} 40. f4 {[%clk 00:00:50]} {[%emt 00:00:57]} Kc6 {[%clk
00:00:08]} {[%emt 00:00:06]} 41. h4 {[%clk 00:00:40]} {[%emt 00:00:15]} Bf3
{[%clk 00:00:08]} {[%emt 00:00:04]} 42. g5 {[%clk 00:00:21]} {[%emt 00:00:23]}
fxg5 {[%clk 00:00:13]} {[%emt 00:00:01]} 43. hxg5 {[%clk 00:00:20]} {[%emt
00:00:06]} Kd6 {[%clk 00:00:13]} {[%emt 00:00:05]} 44. Nf5+ {[%clk 00:00:23]}
{[%emt 00:00:02]} Ke6 {[%clk 00:00:09]} {[%emt 00:00:09]} 45. Nh4 {[%clk
00:00:23]} {[%emt 00:00:05]} Be4 {[%clk 00:00:11]} {[%emt 00:00:05]} 46. Kc5
{[%clk 00:00:17]} {[%emt 00:00:10]} Kd7 {[%clk 00:00:10]} {[%emt 00:00:06]} 47.
Kb6 {[%clk 00:00:18]} {[%emt 00:00:04]} Kd6 {[%clk 00:00:12]} {[%emt 00:00:04]}
48. Kxa6 {[%emt 00:00:07]} Kc6 49. Ka5 {[%clk 00:00:14]} {[%emt 00:00:06]} Bb1
{[%clk 00:00:17]} {[%emt 00:00:04]} 50. a4 {[%clk 00:00:12]} {[%emt 00:00:07]}
bxa4 {[%clk 00:00:17]} {[%emt 00:00:05]} 51. Kxa4 {[%clk 00:00:16]} {[%emt
00:00:01]} Kb6 {[%clk 00:00:19]} {[%emt 00:00:04]} 52. Kb3 {[%clk 00:00:15]}
{[%emt 00:00:04]} Be4 {[%clk 00:00:21]} {[%emt 00:00:04]} 53. c4 {[%clk
00:00:07]} {[%emt 00:00:13]} 1/2-1/2



[ePGN "0.1;DGT LiveChess/2.2.6"]

[Event "MČR juniorů a juniorek v rapid šachu 2024"]
[Site "Hotel Fit Fun, Harrachov, Czech Republic"]
[Date "2024.09.21"]
[Round "4.19"]
[White "Pressler Tobias"]
[Black "Dorazilova Kristyna"]
[Result "1-0"]
[TimeControl "20+5"]
[WhiteFideId "23715359"]
[BlackFideId "23739142"]
[WhiteElo "1992"]
[BlackElo "1771"]

1. e4 {[%clk 00:19:43]} {[%emt 00:00:26]} d6 {[%clk 00:20:09]} {[%emt
00:00:02]} 2. d4 {[%clk 00:19:44]} {[%emt 00:00:04]} Nf6 {[%clk 00:20:13]} 3.
Nc3 {[%clk 00:19:46]} {[%emt 00:00:03]} Nbd7 {[%clk 00:20:17]} 4. f4 {[%clk
00:19:29]} {[%emt 00:00:24]} e5 {[%clk 00:20:22]} 5. fxe5 {[%clk 00:19:24]}
{[%emt 00:00:10]} dxe5 {[%clk 00:20:25]} {[%emt 00:00:01]} 6. Nf3 {[%clk
00:19:04]} {[%emt 00:00:25]} exd4 {[%clk 00:20:03]} {[%emt 00:00:27]} 7. Nxd4
{[%clk 00:19:04]} {[%emt 00:00:04]} Bc5 {[%clk 00:19:06]} {[%emt 00:01:03]} 8.
Be3 {[%clk 00:18:17]} {[%emt 00:00:52]} O-O {[%clk 00:18:52]} {[%emt 00:00:19]}
9. Qd2 {[%clk 00:17:56]} {[%emt 00:00:26]} Re8 {[%clk 00:18:42]} {[%emt
00:00:15]} 10. O-O-O {[%clk 00:16:55]} {[%emt 00:01:05]} c6 {[%clk 00:17:53]}
{[%emt 00:00:55]} 11. Kb1 {[%clk 00:16:08]} {[%emt 00:00:52]} Qc7 {[%clk
00:16:52]} {[%emt 00:01:06]} 12. Bd3 {[%clk 00:12:29]} {[%emt 00:03:44]} Ne5
{[%clk 00:15:39]} {[%emt 00:01:18]} 13. h3 {[%clk 00:11:46]} {[%emt 00:00:49]}
Nxd3 {[%clk 00:15:03]} {[%emt 00:00:41]} 14. cxd3 {[%clk 00:10:58]} {[%emt
00:00:52]} Qe5 {[%clk 00:13:56]} {[%emt 00:01:13]} 15. Nf3 {[%clk 00:10:35]}
{[%emt 00:00:28]} Bxe3 {[%clk 00:13:21]} {[%emt 00:00:40]} 16. Qxe3 {[%clk
00:10:37]} {[%emt 00:00:03]} Qe7 {[%clk 00:12:57]} {[%emt 00:00:29]} 17. g4
{[%clk 00:10:28]} {[%emt 00:00:13]} Nd5 {[%clk 00:11:40]} {[%emt 00:01:23]} 18.
Nxd5 {[%clk 00:09:53]} {[%emt 00:00:40]} cxd5 {[%clk 00:11:44]} 19. e5 {[%clk
00:09:57]} {[%emt 00:00:02]} f6 {[%clk 00:10:46]} {[%emt 00:01:02]} 20. d4
{[%clk 00:09:58]} {[%emt 00:00:04]} Qf7 {[%clk 00:09:58]} {[%emt 00:00:53]} 21.
Ka1 {[%clk 00:09:47]} {[%emt 00:00:17]} Qc7 {[%clk 00:08:25]} {[%emt 00:01:38]}
22. Rc1 {[%clk 00:09:40]} {[%emt 00:00:11]} Qb6 {[%clk 00:08:29]} 23. Rc5
{[%clk 00:09:10]} {[%emt 00:00:35]} Be6 {[%clk 00:06:52]} {[%emt 00:01:42]} 24.
exf6 {[%clk 00:09:10]} {[%emt 00:00:04]} Bf7 {[%clk 00:06:42]} {[%emt
00:00:16]} 25. Qc1 {[%clk 00:08:40]} {[%emt 00:00:35]} Qxf6 {[%clk 00:06:40]}
{[%emt 00:00:07]} 26. Rf1 {[%clk 00:08:41]} {[%emt 00:00:04]} Qa6 {[%clk
00:06:09]} {[%emt 00:00:36]} 27. Ne5 {[%clk 00:07:59]} {[%emt 00:00:46]} Be6
{[%clk 00:06:13]} {[%emt 00:00:02]} 28. a3 {[%clk 00:05:02]} {[%emt 00:03:02]}
Rf8 {[%clk 00:06:14]} {[%emt 00:00:04]} 29. Re1 {[%clk 00:04:15]} {[%emt
00:00:51]} Rac8 {[%clk 00:05:49]} {[%emt 00:00:31]} 30. Rxc8 {[%clk 00:03:51]}
{[%emt 00:00:29]} Rxc8 {[%clk 00:05:53]} 31. Qg5 {[%clk 00:03:48]} {[%emt
00:00:08]} Qb6 {[%clk 00:05:05]} {[%emt 00:00:53]} 32. Qe7 {[%clk 00:03:38]}
{[%emt 00:00:15]} Rf8 {[%clk 00:03:17]} {[%emt 00:01:53]} 33. Rc1 {[%clk
00:02:18]} {[%emt 00:01:25]} Rf2 {[%clk 00:02:47]} {[%emt 00:00:35]} 34. Nd3
{[%clk 00:01:51]} {[%emt 00:00:32]} Rf7 {[%clk 00:02:50]} {[%emt 00:00:02]} 35.
Qe8+ {[%clk 00:01:18]} {[%emt 00:00:38]} Rf8 {[%clk 00:02:52]} {[%emt
00:00:03]} 36. Qe7 {[%clk 00:01:22]} {[%emt 00:00:01]} Rf7 {[%clk 00:02:56]} 37.
Qe8+ {[%clk 00:01:26]} {[%emt 00:00:01]} Rf8 {[%clk 00:03:00]} 38. Qa4 {[%clk
00:01:30]} a6 {[%clk 00:02:35]} {[%emt 00:00:30]} 39. Nc5 {[%clk 00:00:53]}
{[%emt 00:00:42]} Bf7 {[%clk 00:02:39]} {[%emt 00:00:01]} 40. Nd7 {[%clk
00:00:51]} {[%emt 00:00:05]} Qh6 {[%clk 00:02:39]} {[%emt 00:00:06]} 41. Rf1
{[%clk 00:00:26]} {[%emt 00:00:30]} Qxh3 {[%clk 00:02:12]} {[%emt 00:00:32]} 42.
Qd1 {[%clk 00:00:24]} {[%emt 00:00:06]} Rd8 {[%clk 00:02:09]} {[%emt 00:00:07]}
43. Ne5 {[%clk 00:00:28]} {[%emt 00:00:03]} Be6 {[%clk 00:01:36]} {[%emt
00:00:38]} 44. Rh1 {[%clk 00:00:31]} {[%emt 00:00:02]} Qg3 {[%clk 00:01:31]}
{[%emt 00:00:09]} 45. Qc2 {[%clk 00:00:31]} {[%emt 00:00:06]} h6 {[%clk
00:01:31]} {[%emt 00:00:05]} 46. Qg6 {[%clk 00:00:30]} {[%emt 00:00:06]} Bc8
{[%clk 00:00:33]} {[%emt 00:01:03]} 47. Qf7+ {[%clk 00:00:30]} {[%emt
00:00:05]} Kh7 {[%clk 00:00:27]} {[%emt 00:00:11]} 48. Rxh6+ {[%clk 00:00:32]}
{[%emt 00:00:02]} Kxh6 {[%clk 00:00:30]} {[%emt 00:00:02]} 49. Qg6# {[%clk
00:00:37]} 1-0



[ePGN "0.1;DGT LiveChess/2.2.6"]

[Event "MČR juniorů a juniorek v rapid šachu 2024"]
[Site "Hotel Fit Fun, Harrachov, Czech Republic"]
[Date "2024.09.21"]
[Round "4.2"]
[White "Markina Sofiia"]
[Black "Steinbauer Sebastian"]
[Result "1-0"]
[TimeControl "20+5"]
[WhiteFideId "23744014"]
[BlackFideId "399272"]
[WhiteElo "1885"]
[BlackElo "2062"]

1. e4 {[%clk 00:20:08]} {[%emt 00:00:02]} e5 {[%clk 00:20:09]} 2. Nf3 {[%clk
00:20:12]} Nc6 {[%clk 00:20:13]} {[%emt 00:00:02]} 3. Bc4 {[%clk 00:19:54]}
{[%emt 00:00:22]} Nf6 {[%clk 00:20:17]} {[%emt 00:00:02]} 4. d3 {[%clk
00:19:58]} {[%emt 00:00:01]} Bc5 {[%clk 00:20:16]} {[%emt 00:00:06]} 5. c3
{[%clk 00:20:02]} {[%emt 00:00:01]} d6 {[%clk 00:20:08]} {[%emt 00:00:12]} 6.
O-O {[%clk 00:20:04]} {[%emt 00:00:05]} h6 {[%clk 00:19:57]} {[%emt 00:00:14]}
7. Nbd2 {[%clk 00:20:07]} {[%emt 00:00:01]} O-O {[%clk 00:19:21]} {[%emt
00:00:41]} 8. Bb3 {[%clk 00:20:11]} {[%emt 00:00:02]} Be6 {[%clk 00:19:12]}
{[%emt 00:00:13]} 9. h3 {[%clk 00:20:10]} {[%emt 00:00:06]} Qd7 {[%clk
00:19:05]} {[%emt 00:00:12]} 10. Re1 {[%clk 00:20:11]} Rfe8 {[%clk 00:17:04]}
{[%emt 00:02:10]} 11. Nf1 {[%clk 00:20:11]} Bxb3 {[%clk 00:16:08]} {[%emt
00:01:06]} 12. Qxb3 {[%clk 00:20:06]} Bb6 {[%clk 00:15:34]} {[%emt 00:00:49]}
13. Ng3 {[%clk 00:19:55]} d5 {[%clk 00:15:25]} {[%emt 00:00:30]} 14. Nh4 dxe4
{[%clk 00:14:54]} 15. dxe4 {[%clk 00:19:27]} {[%emt 00:00:01]} Qd3 {[%clk
00:13:47]} {[%emt 00:01:10]} 16. Be3 {[%clk 00:15:54]} {[%emt 00:03:40]} Rad8
{[%clk 00:11:08]} {[%emt 00:02:44]} 17. Bxb6 {[%clk 00:13:26]} {[%emt
00:02:33]} axb6 {[%clk 00:11:09]} {[%emt 00:00:04]} 18. Rad1 {[%clk 00:13:30]}
{[%emt 00:00:02]} Qa6 {[%clk 00:11:12]} {[%emt 00:00:02]} 19. Ngf5 {[%clk
00:13:25]} {[%emt 00:00:09]} Rxd1 20. Qxd1 Qxa2 {[%clk 00:07:55]} {[%emt
00:02:52]} 21. Qf3 {[%clk 00:13:28]} {[%emt 00:00:06]} Nd8 {[%clk 00:07:28]}
{[%emt 00:00:33]} 22. Nxh6+ {[%clk 00:13:24]} {[%emt 00:00:09]} Kf8 {[%clk
00:06:27]} {[%emt 00:01:06]} 23. Rd1 {[%clk 00:09:54]} {[%emt 00:03:34]} Qxb2
{[%clk 00:05:35]} {[%emt 00:00:58]} 24. Kh2 {[%clk 00:08:55]} {[%emt 00:01:03]}
Qb5 {[%clk 00:05:13]} {[%emt 00:00:27]} 25. g4 {[%clk 00:08:25]} {[%emt
00:00:35]} Ne6 {[%clk 00:04:59]} {[%emt 00:00:19]} 26. Rd5 {[%clk 00:07:58]}
{[%emt 00:00:33]} Qc6 {[%clk 00:03:14]} {[%emt 00:01:50]} 27. Qf5 {[%clk
00:06:36]} {[%emt 00:01:26]} gxh6 {[%clk 00:02:17]} {[%emt 00:01:02]} 28. Qxf6
{[%clk 00:06:17]} {[%emt 00:00:24]} Kg8 {[%clk 00:01:47]} {[%emt 00:00:35]} 29.
Nf5 {[%clk 00:06:02]} {[%emt 00:00:20]} Rf8 {[%clk 00:00:28]} {[%emt 00:01:25]}
30. Ne7+ {[%clk 00:06:05]} {[%emt 00:00:01]} 1-0



[ePGN "0.1;DGT LiveChess/2.2.6"]